Cogmind - Beta 17 @@@ ROGUE MODE // 2026.07.26 @ 00:30:35 Player: OBLIQUE Result: Destroyed by I1-V1I(R) with Subdweller Beam Cannon Performance ------------- Evolutions (0) 0 Regions Visited (2) 400 Robots Destroyed (25) 125 Value Destroyed (599) 599 Prototype IDs (19) 380 Alien Tech Used (0) 0 Bonus (0) 0 TOTAL SCORE: 1504 Bonus ------- None Cogmind --------- Core Integrity 0/250 Matter 77/300 Energy 250/250 System Corruption 0% Temperature Cool (9) Movement Rolling (105) Location -10/Subcaves Parts ------- > --- POWER (1) -------- Ion Engine > --- PROPULSION (2) --- Compact Wheel Subdweller Monowheel > --- UTILITY (2) ------ Small Storage Unit Gun Armor > --- WEAPON (2+2) ----- Battle Rifle Battle Cannon > --- INVENTORY (8) ---- Scrap Shield Subdweller Laser Battle Rifle Subdweller Shrapnel Launcher Enhanced Flamer Peak State ------------ > --- POWER ------------ Ion Engine > --- PROPULSION ------- Compact Wheel Subdweller Monowheel > --- UTILITY ---------- Subdweller Optics Gun Armor > --- WEAPON ----------- Subdweller Beam Cannon Subdweller Shrapnel Launcher > --- INVENTORY -------- Arachnoskeleton Scrap Shield [Rating: 21] Favorites ----------- Power Ion Engine Engine Ion Engine Propulsion Compact Wheel Wheel Compact Wheel Utility Small Storage Unit Device Improved Terrain Scanner Storage Small Storage Unit Protection Scrap Shield Weapon Light Assault Rifle Energy Gun Small Laser Energy Cannon Subdweller Beam Cannon Ballistic Gun Light Assault Rifle Ballistic Cannon Battle Cannon Launcher Subdweller Shrapnel Launcher Build | -11 -10 -10 ------- Run | Yrd Mat Sub Slots Evolved . | . . . Power . | . . . Propulsion . | . . . Utility . | . . . Weapon . | . . . Parts Attached 26 | 8 1 17 Power 1 | 1 . . Engine 1 | 1 . . Core . | . . . Reactor . | . . . Propulsion 8 | 2 1 5 Treads . | . . . Leg . | . . . Wheel 8 | 2 1 5 Hover . | . . . Flight . | . . . Utility 5 | 2 . 3 Device 2 | 1 . 1 Storage 1 | 1 . . Processor . | . . . Hackware . | . . . Protection 2 | . . 2 Artifact . | . . . Weapon 12 | 3 . 9 Energy Gun 1 | . . 1 Energy Cannon 1 | . . 1 Ballistic Gun 8 | 3 . 5 Ballistic Cannon 1 | . . 1 Launcher 1 | . . 1 Special Weapon . | . . . Impact Weapon . | . . . Slashing Weapon . | . . . Piercing Weapon . | . . . Special Melee Weapon . | . . . Unidentified Prototypes 1 | . . 1 Parts Lost 4 | . . 4 Power . | . . . Propulsion 2 | . . 2 Utility 1 | . . 1 Weapon 1 | . . 1 Highest Loss Streak 1 | . . 1 To Critical Strikes . | . . . Average Backups 4 | 1 3 4 Power 1 | . 1 1 Propulsion . | . . . Utility . | . . 1 Weapon 1 | . 2 2 Tool/Special . | . . . Unused Backups 12 | 1 1 10 Power 2 | . . 2 Propulsion 1 | . . 1 Utility 7 | 1 1 5 Weapon 2 | . . 2 Tool/Special . | . . . Average Slot Usage (%) 85 | . 100 81 Engine 12 | . 14 12 Wheel 25 | . 28 25 Device 4 | . 14 2 Storage 6 | . 14 5 Protection 9 | . . 11 Energy Cannon 1 | . . 1 Ballistic Gun 21 | . 28 19 Launcher 2 | . . 2 Peak Build Rating 21 | 9 10 21 Average Rating 12 | 6 9 14 On Entrance 6 | . 9 10 Avg Prop Armor Cover (%) 1 | . . 1 Naked Turns . | . . . Heaviest Build 30 | 14 14 30 Greatest Support 36 | 26 26 36 Greatest Overweight (x) 1 | . . 1 Average Overweight (x) . | . . . Largest Inventory Capacity 8 | 8 8 8 Average Capacity 6 | 7 8 6 Most Carried 8 | 3 7 8 Average Carried 5 | 1 3 5 Final Capacity 8 | 8 8 8 Final Carried 7 | 2 7 6 Class Distribution -------------------- 95% | Mutant 4% | Scavenger-Mutant Dominant Class ---------------- Mutant | -10/Materials Mutant | -10/Subcaves Resources | -11 -10 -10 ----------- Run | Yrd Mat Sub Matter Collected 883 | 257 126 500 Remotely . | . . . Salvage Created 764 | 59 191 514 Parts 63 | 10 23 30 Haulers Intercepted . | . . . Recyclers Shooed 1 | 1 . . Parts Field Recycled . | . . . Retrieved Matter . | . . . Parts Self-Destructed 13 | . . 13 Prevented . | . . . Parts Restored . | . . . Kills | -11 -10 -10 ------- Run | Yrd Mat Sub Combat Hostiles Destroyed 18 | . 4 14 Guns 18 | . 4 14 Classes Destroyed 8 | 1 5 2 Builder 2 | . 2 . Tunneler 3 | 3 . . Mechanic 1 | . 1 . Watcher 1 | . 1 . Swarmer 6 | . 3 3 Grunt 1 | . 1 . Sentry 1 | . . 1 Subdweller 10 | . . 10 Best Kill Streak 4 | 3 3 4 Combat Bots Only 4 | . 3 4 Max Kills in Single Turn 1 | 1 1 1 Gunslinging . | . . . Exploded . | . . . Melee . | . . . Uniques/NPCs Destroyed . | . . . Combat | -11 -10 -10 -------- Run | Yrd Mat Sub Hostile Shots Fired 105 | . 24 81 Missed 28 | . 7 21 Hits 77 | . 17 60 Projectile 77 | . 17 60 AOE 2 | . . 2 Critical Strikes 1 | . . 1 Damage Taken 1463 | . 136 1327 Core 269 | . 40 229 Absorbed by Shields . | . . . Core Remaining (%) 100 | 100 . . Volleys Fired 132 | 10 29 93 Largest 2 | 2 2 2 Hottest 80 | 40 40 80 Shots Fired 239 | 20 58 161 Gun 213 | 20 58 135 Cannon 23 | . . 23 Launcher 3 | . . 3 Special . | . . . Kinetic 223 | 20 58 145 Thermal 16 | . . 16 Explosive . | . . . Electromagnetic . | . . . Robot Hit Streak 31 | 6 7 31 Robot Miss Streak 3 | 2 2 3 Penetration Max . | . . . Secondary Targets 4 | . 2 2 Max Gunslinging Chain 1 | . 1 1 Shots Hit Robots 149 | 12 36 101 Core Hits 49 | 6 12 31 Critical Kills . | . . . Critical Parts Destroyed . | . . . Critical Strikes 1 | . . 1 Blast 1 | . . 1 Melee Attacks . | . . . Impact . | . . . Slashing . | . . . Piercing . | . . . Sneak Attacks . | . . . Combat Hostiles . | . . . Follow-up Attacks . | . . . Damage Inflicted 1872 | 137 403 1332 Guns 1644 | 137 403 1104 Cannons 228 | . . 228 Explosions . | . . . Melee . | . . . Ramming . | . . . Kinetic 1827 | 137 403 1287 Thermal 45 | . . 45 Explosive . | . . . Electromagnetic . | . . . Impact . | . . . Slashing . | . . . Piercing . | . . . Highest Corruption . | . . . Average Corruption . | . . . Corruption Purged . | . . . Corruption Blocked . | . . . Overload Shots . | . . . Overflow Damage . | . . . Projectiles . | . . . Explosions . | . . . Melee . | . . . Knockbacks 7 | . . 7 Impact . | . . . Kinetic 6 | . . 6 Secondary 1 | . . 1 Self-Inflicted Damage 22 | . . 22 Shots 1 | . . 1 Rammed . | . . . Targets Rammed . | . . . Kicked . | . . . Crushed . | . . . Highest Temperature 8 | . . 8 Average Temperature 4 | . . 4 Received Heat Transfer 183 | . 6 177 Siege Activations . | . . . Martial Activations . | . . . Shielding Activations . | . . . Robots Disrupted . | . . . Combat Hostiles . | . . . Robots Corrupted . | . . . Combat Hostiles . | . . . Parts Fried . | . . . Impact Corruptions . | . . . Robots Melted . | . . . Combat Hostiles . | . . . Parts Melted 2 | . . 2 Heat Transferred 100 | . . 100 Parts Sabotaged . | . . . Parts Stolen . | . . . Parts Stripped . | . . . Power Chain Reactions . | . . . Alert | -11 -10 -10 ------- Run | Yrd Mat Sub Maximum Alert Level . | . . . Low Security (%) 100 | 100 100 . Level 1 . | . . . Level 2 . | . . . Level 3 . | . . . Level 4 . | . . . Level 5 . | . . . High Security . | . . . Max Security . | . . . Peak Influence 70 | 5 70 . Initial . | . . . Average 11 | . 14 . Influence Increases 261 | 15 156 90 Destroy 0b10 Robot/C 160 | . 80 80 Destroy 0b10 Robot/NC 35 | 15 20 . Destroy Leader 32 | . 22 10 Successful Hack 34 | . 34 . Influence Decreases 261 | 15 156 90 Time Decay 261 | 15 156 90 Squads Dispatched 1 | . 1 . Investigation 1 | . 1 . Extermination . | . . . Reinforcement . | . . . Assault . | . . . Garrison . | . . . Intercept . | . . . Searches Triggered . | . . . Construction Impeded . | . . . Haulers Reinforced . | . . . Active Scanning Responses . | . . . Cargo Convoy Interrupts . | . . . Stealth | -11 -10 -10 --------- Run | Yrd Mat Sub Distress Signals 1 | . 1 . Communications Jammed . | . . . Distress Signals . | . . . Times Spotted 27 | . 10 17 Peak Tracking Total 4 | . 4 3 Tactical Retreats . | . . . Traps | -11 -10 -10 ------- Run | Yrd Mat Sub Traps Triggered 1 | . . 1 Indirectly . | . . . Trap Hack Attempts . | . . . Triggered . | . . . Disarmed . | . . . Reprogrammed . | . . . Reused 1 | . . 1 Traps Extracted . | . . . Installed 1 | . . 1 Triggered . | . . . Most Traps Carried 1 | . . 1 Machines | -11 -10 -10 ---------- Run | Yrd Mat Sub Machines Disabled 1 | . . 1 Max in Single Turn 1 | . . 1 Machines Repaired . | . . . Machines Dismantled . | . . . Machines Sabotaged . | . . . Overloaded Fab Kills . | . . . Hacking | -11 -10 -10 --------- Run | Yrd Mat Sub Machines Accessed 7 | . 6 1 Terminals 6 | . 6 . Fabricators . | . . . Repair Stations . | . . . Recycling Units . | . . . Scanalyzers . | . . . Garrison Access . | . . . Total Hacks 30 | . 28 2 Successful 18 | . 16 2 Failed 11 | . 11 . Catastrophic 5 | . 5 . Database Lockouts 1 | . 1 . Manual 18 | . 18 . Terminals 28 | . 28 . Fabricators . | . . . Repair Stations . | . . . Recycling Units . | . . . Scanalyzers . | . . . Garrison Access . | . . . Terminal Hacks 14 | . 12 2 Record 2 | . 1 1 Robot Analysis 1 | . 1 . Prototype ID Bank 4 | . 4 . Emergency Access Points 1 | . 1 . Terminal Index 1 | . 1 . Locate Traps 1 | . 1 . Hauler Manifests 1 | . 1 . Zone Layout 2 | . 2 . Proto ID Catalog 1 | . . 1 Fabricator Hacks . | . . . Repair Station Hacks . | . . . Recycling Unit Hacks . | . . . Scanalyzer . | . . . Garrison Access Hacks . | . . . Unauthorized Hacks 4 | . 4 . Terminals 4 | . 4 . Botnet 3 | . 3 . Operators 1 | . 1 . Fabricators . | . . . Repair Stations . | . . . Recycling Units . | . . . Scanalyzers . | . . . Garrison Access . | . . . Data Cores Recovered . | . . . Used . | . . . Hacking Detections 6 | . 6 . Full Trace Events 1 | . 1 . Feedback Events . | . . . Feedback Blocked . | . . . Robot Schematics Acquired . | . . . Robots Built . | . . . Authchips . | . . . Time . | . . . Total Robot Build Rating . | . . . Part Schematics Acquired . | . . . Parts Built . | . . . Authchips . | . . . Time . | . . . Total Part Build Rating . | . . . Part Studies Acquired . | . . . Parts Repaired . | . . . Time . | . . . Parts Recycled . | . . . Recycled Matter . | . . . Retrieved Matter . | . . . Retrieved Components . | . . . Parts Scanalyzed . | . . . Part Schematics Acquired . | . . . Parts Damaged . | . . . Bothacking | -11 -10 -10 ------------ Run | Yrd Mat Sub Used RIF Installer . | . . . Robots Hacked . | . . . Non-combat . | . . . Combat . | . . . Robot Hacks Applied . | . . . Relay Couplers Released . | . . . Fabnet Peak Effective % . | . . . Robots Rewired . | . . . Allies Hacked . | . . . Hacks Repelled . | . . . Allies | -11 -10 -10 -------- Run | Yrd Mat Sub Total Allies . | . . . Largest Group . | . . . Highest-Rated Group . | . . . Highest-Rated Ally . | . . . Total Orders . | . . . Ally Attacks . | . . . Total Damage . | . . . Kills . | . . . Allies Corrupted . | . . . Allies Melted . | . . . Intel | -11 -10 -10 ------- Run | Yrd Mat Sub Active Infowar (turns) 935 | 36 516 383 Optics 181 | . . 181 Terrain 754 | 36 516 202 Robot Analysis Total 1 | . 1 . Derelict Logs Recovered 1 | . . 1 Drone Launches . | . . . Drone Recoveries . | . . . Exploration | -11 -10 -10 ------------- Run | Yrd Mat Sub Turns Passed 2872 | 120 516 2236 Spaces Moved 2120 | 66 360 1694 Core 3 | 3 . . Treads . | . . . Legs . | . . . Wheels 2117 | 63 360 1694 Hover . | . . . Flight . | . . . Fastest Speed 50 | 50 90 90 Average Speed 102 | 87 90 106 Slowest Speed 115 | 90 90 115 Overloaded Moves . | . . . Propulsion Burnouts . | . . . Robots Hopped . | . . . Potential Cave-ins . | . . . Cave-ins Triggered . | . . . Exploration Rate (%) 36 | 3 54 52 Regions Visited 2 Branch Regions 1 Pre-discovered Areas 1 | . . 1 Known Exits Taken . | . . . Unknown Exits Taken 2 | 1 1 . Scrap Searched 6 | . . 6 Spaces Dug . | . . . Terrain Destroyed 65 | . . 65 Melee . | . . . Projectile . | . . . AOE 65 | . . 65 Terrain Rammed . | . . . Walls Destroyed . | . . . Machines Disabled . | . . . Actions | -11 -10 -10 --------- Run | Yrd Mat Sub Total 2591 | 106 499 1986 Wait 253 | 20 104 129 Move 2118 | 65 359 1694 Hop . | . . . Pick Up 23 | 2 5 16 Fast Attach 14 | 7 . 7 Attach 7 | . . 7 Detach 2 | . . 2 Swap 12 | 1 1 10 Drop 25 | 1 1 23 Fire 132 | 10 29 93 Melee . | . . . Ram . | . . . Kick . | . . . Crush . | . . . Escape Stasis . | . . . Rewire . | . . . Trap 1 | . . 1 Miscellaneous 4 | . . 4 Route ------- -11/Scrapyard -10/Materials (discovered 3 exits: [*Mat] / [*Min] / *Sub) -10/Subcaves (discovered 1 exit: [*Mat]) History --------- Turn | Location | Event 7 | -11/Scrapyard | Discovered new exit (range 16) 121 | -11/Scrapyard | Entered Materials 212 | -10/Materials | Discovered new exit (range 5) 228 | -10/Materials | Discovered new exit (range 15) 274 | -10/Materials | Discovered new exit (range 15) 312 | -10/Materials | Build established: Mutant 501 | -10/Materials | Central database locked down 637 | -10/Materials | Entered Subcaves 638 | -10/Subcaves | Approached by a straggling Scientist 640 | -10/Subcaves | Shifting Twisted Machinery released Piercing Trap 652 | -10/Subcaves | Discovered new exit (range 12) 664 | -10/Subcaves | Shifting Twisted Machinery released Scrap Shield 715 | -10/Subcaves | A swath of the cavern ceiling suddenly collapsed 880 | -10/Subcaves | Learned location of Zion (-6) 880 | -10/Subcaves | Met a Zionite searching for "candidates" 1852 | -10/Subcaves | A Subdweller sparked back to life 1880 | -10/Subcaves | Ambushed by Subdweller buried in earth 1911 | -10/Subcaves | Found Prototype Protection 1911 | -10/Subcaves | Identified Gun Armor 1913 | -10/Subcaves | Attached Gun Armor, gained temporary slots: Weapon x2 2007 | -10/Subcaves | Visited 4L-MR0's lab 2020 | -10/Subcaves | Found Arachnoskeleton 2440 | -10/Subcaves | Disturbed a concealed Subdweller 2493 | -10/Subcaves | Shifting Twisted Machinery released Mak. Light Armor Plating 2569 | -10/Subcaves | Disturbed a concealed Subdweller 2576 | -10/Subcaves | Core integrity fell below 50% 2642 | -10/Subcaves | Ambushed by Subdweller buried in earth 2664 | -10/Subcaves | Shifting Twisted Machinery released Battle Rifle 2818 | -10/Subcaves | Core integrity fell below 20% 2873 | -10/Subcaves | Destroyed by I1-V1I(R) with Subdweller Beam Cannon Last Messages --------------- 02578_ Acquired 18 matter. 02643_ SI-66K(R): "THANKSYOU!" 02647_ Battle Rifle destroyed. 02658_ SI-66K(R) destroyed. Battle Rifle falls loose from the Twisted Machinery. 02667_ Acquired 32 matter. 02704_ Dropped Sml. Laser. 02704_ Acquired Battle Rifle. 02727_ Dropped Arachnoskeleton. 02727_ Acquired Sub. Laser. 02762_ Acquired Battle Cannon. 02826_ X3-YNX(R) knocked back. 02831_ I1-V1I(R) Sub. Monowheel blasted off. 02831_ I1-V1I(R) knocked back. 02840_ X3-YNX(R) knocked back. 02847_ Sub. Monowheel destroyed. 02860_ X3-YNX(R) knocked back. 02863_ X3-YNX(R) destroyed. 02870_ Acquired 7 matter. Map ----- +----------------------------------------------------+ | ### #??????????????????????????????????? | | #??##??????????????????????????????????? | | #??????????????????????????????????????? | | ### ### #????????????????????????????????????? | | ??####?## ##????????????????????????????????????? | | ???????? #?????????????????????????????????????? | | ????????# ?????????????????????????????????????? | | ????????# ##????????????????????????????????????? | | ????????? ?????????????????????????????????????? | | ????????? #????????????????????????????????????? | | ????????? ##????????????????????????????????????? | | ????????? ?????????????????????????????????????? | | ????????? ?????????????????????????????????????? | | ????????? ?? ??????????????????????????????????? | | ?????????# ??? ?????????????????????????????????? | | ???????????????? ???????????????????#????????????? | | ????????????????? ???????????????? #????????????? | | ?????????????????# ?????????????? ## #?????????? | | ????????????????## #?##????????# ##????????? | | ????????????????? ## #????## ????????? | | ??????????????????## #### "???????? | | ??????????????????# % #[ ???????? | | ?????????????????????# % [ ???????? | | ?????????????????????##% ## ##??????????????? | | ??????????????????????#R%##??? #???????????????? | | ????????????###????#####=@#?????##???????????????? | | ???????????## #??### ### ##??????????????????????? | | ??????????## #??# ## #???????????????????????? | | ??????????# ##??# #??????####?????????????? | | ??????????# ##?# # #?????## #?????????????? | | ??????????## ### # #????## #??????????????? | | ?????####??### ###### ##?????????????? | | ?????# ##???# ###???????????? | | ?????? #???# ##??????????? | | ?????? ##??## #??????????? | | ?????## #???## ### #??????????? | | ?????# #????## #### #?## ##?????????? | | ##????# #??##### #### ##??## ##????????? | | ###### #### ## ## ##????## ##???????? | | ### ##??????# #???????? | | = ###???????# ##???????? | | ##?????????# #????????? | | ######## # #??????????# ##???????? | | #??????## ###### #????????## #???????? | | ????????# ##????## ##?????????#####???????? | | ????????###??????##########??????????????????????? | | ?????????????????????????????????????????????????? | | ?????????????????????????????????????????????????? | | ?????????????????????????????????????????????????? | | ?????????????????????????????????????????????????? | +----------------------------------------------------+ Best States ------------- Heat Dissipation 25 Energy Generation 10 Energy Capacity 250 Matter Stores 300 Matter Capacity 300 Sight Range 21 Terrain Scan Range 16 Terrain Scan Density 10 Armor Coverage 800 Evasion (%) 44 Item Schematics ----------------- None Robot Schematics ------------------ None Fabricated ------------ Nothing Repaired ---------- Nothing Studied --------- None Alien Tech Used ----------------- None Achievements -------------- None Challenges ------------ None Game ------ Seed DecoySingularityGun Manual? 0 Play Time 00:23:44 Cumulative 186.2 hours Start 2026.07.26 @ 00:06:55 End 2026.07.26 @ 00:30:35 Sessions 1 Manual Loads 0 Difficulty Rogue Special Mode None Game No. 105 Rogue 105 Adventurer 0 Explorer 0 Win Type - Total 4 Types 4/0/0/0/0/0/0/0/0/0 Lore% 72 Gallery% 63 Achievement% 54 Wizard Run 0 Options --------- Layout 1 ASCII 0 Keyboard 0 Movement Numpad Keybinds 0 Fullscreen 1 Font 24/Smallcaps Map View 50x35 Zoom Use 0% Tactical HUD 1 Map Filters NONE Filters NONE Steam 1 RUN: da2325e6-b60a-463c-93d5-97ca2641e494